bitfinex-derivatives/quotes_SOLF0:USTF0_20260215
["timestamp","ask_amount","ask_price","bid_price","bid_amount"]
[1771114016080,17.02731477,88.076,88.046,10.2275]
[1771114016286,16.97597301,88.112,88.046,10.2275]
[1771114016886,16.97597301,88.112,88.052,28.01369545]
[1771114017187,16.97597301,88.112,88.055,28.01369545]
[1771114017385,16.97597301,88.112,88.06,28.01369545]
[1771114018184,16.97597301,88.112,88.057,28.01369545]
[1771114018786,16.97597301,88.112,88.072,10.2244]
[1771114019182,16.97597301,88.112,88.057,28.01369545]
[1771114019385,16.97597301,88.112,88.056,124.14]
[1771114020691,16.97597301,88.112,88.039,28.01369545]
[1771114020889,16.97597301,88.112,88.002,49.42910791]
[1771114020890,16.97597301,88.112,88.026,124.76]
[1771114021892,16.89195941,88.111,88.041,10.228]
[1771114022292,16.89195941,88.109,88.041,10.228]
[1771114022899,16.89195941,88.109,88.052,10.2268]
[1771114023194,16.89195941,88.109,88.029,28.01369545]
[1771114024293,16.89195941,88.109,88.048,10.2272]
[1771114024998,17.232368,88.107,88.039,10.2283]
[1771114025887,17.26179334,88.101,88.008,198.98465277]
[1771114026090,34.12,88.094,87.979,418.2632912]
[1771114026386,158.9572,88.123,87.979,418.2632912]
[1771114026387,17.26179334,88.087,87.979,390.24959575]
[1771114026588,17.26179334,88.063,87.999,10.2329]
[1771114027683,17.26179334,88.063,88.008,10.2318]
[1771114028486,17.26179334,88.063,87.989,10.2341]
[1771114030193,150.9,88.092,87.989,10.2341]
[1771114030194,17.26284081,88.061,87.989,10.2341]
[1771114031602,17.2627046,88.058,87.989,10.2341]
[1771114032600,17.26228627,88.055,87.989,10.2341]
[1771114033001,17.26228627,88.055,87.979,400.48489575]
[1771114033803,17.27438132,88.053,87.979,400.48489575]
[1771114034504,17.27438132,88.049,87.979,400.48489575]
[1771114036107,17.27438132,88.049,87.988,10.2342]
[1771114037307,17.27438132,88.049,87.979,390.24959575]
[1771114039510,17.22126749,88.046,87.979,390.24959575]
[1771114040311,17.22126749,88.046,87.98,10.2351]
[1771114041706,17.22126749,88.046,87.979,390.24959575]
[1771114042416,17.22126749,88.046,87.981,11.35]
[1771114042712,17.22126749,88.046,88.006,10.2321]
[1771114042909,17.22126749,88.046,88.007,132.04]
[1771114044312,17.22126749,88.046,88.002,132.54]
[1771114044714,17.22126749,88.046,88.003,10.2324]
[1771114046219,17.22126749,88.046,87.991,10.2338]
[1771114046420,17.22126749,88.046,87.992,132.84]
[1771114047011,10.2279,88.043,87.992,132.84]
[1771114047217,17.30589338,88.042,87.992,132.84]
[1771114048121,10.2283,88.039,87.992,132.84]
[1771114048420,17.2859293,88.038,87.992,132.84]
[1771114048625,17.2859293,88.038,87.982,10.2348]
[1771114049924,17.26419037,88.035,87.982,10.2348]
[1771114051028,17.26407996,88.032,87.964,135.44]
[1771114052724,17.48288388,88.015,87.964,135.44]
[1771114054726,17.48288388,88.015,87.974,10.2358]
[1771114054928,34.12,88.086,87.964,135.44]
[1771114054929,17.46392252,88.034,87.965,11.35]
[1771114056326,17.46392252,88.034,87.98,10.2351]
[1771114059030,17.46392252,88.034,87.99,10.234]
[1771114061232,17.46392252,88.034,87.964,135.44]
[1771114061233,17.33421476,88.062,87.998,10.233]
[1771114062034,17.34167532,88.058,87.998,10.233]
[1771114063037,17.34156754,88.055,87.998,10.233]
[1771114063336,17.34156754,88.055,88.007,10.232]
[1771114064127,17.34156754,88.055,87.972,11.35]
[1771114064128,17.2919623,88.053,87.996,10.2332]
[1771114064726,17.29187219,88.048,87.987,10.2343]
[1771114065534,17.29187219,88.04,87.977,10.2354]
[1771114066340,17.31372107,88.038,87.968,10.2365]
[1771114066838,17.31363264,88.03,87.968,10.2365]
[1771114067239,17.31363264,88.03,87.954,10.2382]
[1771114067441,17.31363264,88.012,87.941,11.35]
[1771114067636,17.31363264,88.012,87.94,335.14358356]
[1771114068636,17.31363264,88.012,87.941,11.35]
[1771114068837,17.31363264,88.012,87.962,10.2372]
[1771114069139,17.31363264,88.012,87.941,11.35]
[1771114069328,17.28327349,88.01,87.953,10.2383]
[1771114070639,17.33603391,88.007,87.953,10.2383]
[1771114071138,17.33603391,88.005,87.953,10.2383]
[1771114071640,17.33603391,88.005,87.941,10.2397]
[1771114072536,17.33994808,88.002,87.941,10.2397]
[1771114073739,10.2331,87.998,87.941,10.2397]
[1771114073934,27.5398905,87.998,87.941,10.2397]
[1771114074637,17.30670888,87.997,87.941,10.2397]
[1771114074840,27.54020888,87.995,87.941,10.2397]
[1771114075638,17.30670888,87.995,87.941,10.2397]
[1771114077038,10.2336,87.994,87.94,335.14358356]
[1771114077240,17.30613955,87.993,87.94,199.18358356]
[1771114077837,17.30613955,87.993,87.94,338.56358356]
[1771114078342,17.30613955,87.993,87.94,199.18358356]
[1771114079437,17.30613955,87.993,87.941,140.32]
[1771114079838,17.36695418,87.99,87.94,199.18358356]
[1771114080338,17.36695418,87.99,87.897,34.12]
[1771114080339,17.36695418,87.979,87.885,28.01369545]
[1771114080537,17.36695418,87.979,87.888,140.78]
[1771114080732,17.36695418,87.979,87.889,90.64]
[1771114081844,17.36695418,87.979,87.917,10.2424]
[1771114082041,17.36695418,87.979,87.918,141.44]
[1771114082547,17.36695418,87.979,87.921,10.242]
[1771114091750,17.09612816,87.976,87.918,141.44]
[1771114092449,17.09612816,87.968,87.878,28.01369545]
[1771114092645,17.09612816,87.968,87.879,143.72]
[1771114093151,17.0960866,87.952,87.879,143.72]
[1771114093549,17.0960866,87.952,87.888,10.2459]
[1771114097054,17.15086928,87.95,87.879,153.9669]
[1771114097249,17.15086928,87.95,87.88,144.04]
[1771114098657,17.11956879,87.94,87.88,144.04]
[1771114099847,17.11956879,87.94,87.876,10.2472]
[1771114100753,16.95075756,87.937,87.876,10.2472]
[1771114101363,16.95075756,87.937,87.885,10.2462]
[1771114101860,16.95075756,87.937,87.869,144.58]
[1771114102555,16.95075756,87.937,87.882,10.2466]
[1771114104557,17.16408857,87.935,87.882,10.2466]
[1771114106067,17.16408857,87.935,87.847,34.12]
[1771114106068,17.09804214,87.912,87.857,10.2494]
[1771114106359,17.09804214,87.912,87.839,90.64]
[1771114107551,16.99148775,87.892,87.839,90.64]
[1771114108752,16.99146045,87.889,87.782,34.12]
[1771114108957,16.99146045,87.889,87.797,145.56]
[1771114109651,90.64,87.901,87.797,145.56]
[1771114109652,17.02505469,87.875,87.814,10.2545]
[1771114109854,17.02505469,87.875,87.797,145.56]
[1771114110662,17.02505469,87.87,87.797,145.56]
[1771114111161,10.2482,87.868,87.797,155.8165]
[1771114111358,17.02502645,87.867,87.797,155.8165]
[1771114113363,16.75340872,87.886,87.798,34.12]
[1771114113763,16.75340872,87.886,87.797,145.56]
[1771114113956,16.75340872,87.886,87.798,34.12]
[1771114114360,16.75340872,87.886,87.799,148.68]
[1771114114561,10.2462,87.885,87.799,148.68]
[1771114115254,10.2462,87.885,87.818,10.254]
[1771114115458,10.2465,87.883,87.819,149.44]
[1771114115662,16.7474401,87.882,87.819,149.44]
[1771114117467,90.64,87.897,87.819,149.44]
[1771114117468,16.7474377,87.868,87.819,149.44]
[1771114117964,16.7474377,87.868,87.805,150.08]
[1771114118665,10.2491,87.861,87.805,150.08]
[1771114119064,16.6794761,87.86,87.805,150.08]
[1771114122165,16.69548561,87.895,87.805,150.08]
[1771114122463,16.69548561,87.895,87.823,10.2534]
[1771114123266,16.69548561,87.895,87.824,151.26]
[1771114123766,16.74277442,87.892,87.824,151.26]
[1771114124265,16.74277442,87.892,87.809,151.34]
[1771114124466,16.74277442,87.868,87.796,329.87062348]
[1771114125769,16.59352419,87.851,87.796,329.87062348]
[1771114126768,10.2503,87.85,87.796,329.87062348]
[1771114126963,16.593533,87.849,87.796,329.87062348]
[1771114127769,16.57803876,87.847,87.768,10.2599]
[1771114127970,16.57803876,87.846,87.745,90.66]
[1771114128772,16.57804796,87.828,87.758,10.2611]
[1771114129269,16.57804796,87.828,87.745,90.66]
[1771114129470,16.57804796,87.81,87.733,98.48]
[1771114130866,16.53513844,87.829,87.733,98.48]
[1771114131472,16.53513844,87.829,87.735,10.2637]
[1771114131770,10.2531,87.827,87.733,98.48]
[1771114131971,16.58532515,87.826,87.745,10.2625]
[1771114132167,16.58532515,87.86,87.734,34.12]
[1771114132366,16.58532515,87.849,87.734,34.12]
[1771114132565,34.12,87.898,87.77,34.12]
[1771114132566,16.58533365,87.897,87.77,34.12]
[1771114132773,16.58533365,87.892,87.719,34.12]
[1771114133066,16.58533365,87.877,87.738,11.35]
[1771114133271,16.58533365,87.875,87.739,45.47]
[1771114133473,16.58533365,87.862,87.739,45.47]
[1771114133864,10.249,87.861,87.785,10.2579]
[1771114134063,10.249,87.861,87.786,90.66]
[1771114134369,16.56403895,87.86,87.787,90.66]
[1771114135165,10.2498,87.855,87.787,90.66]
[1771114135472,16.56403895,87.86,87.789,10.2574]
[1771114135869,10.2485,87.866,87.79,11.35]
[1771114136270,10.2485,87.866,87.792,11.35]
[1771114136864,10.2485,87.866,87.798,10.2564]
[1771114137066,10.2485,87.866,87.799,90.66]
[1771114137468,16.66493554,87.878,87.799,90.66]
[1771114138371,16.66493554,87.878,87.81,10.255]
[1771114139170,16.65076227,87.906,87.821,10.2537]
[1771114140667,16.75455176,87.904,87.83,10.2526]
[1771114140864,16.75455176,87.904,87.817,141.92]
[1771114141067,16.75455176,87.904,87.825,45.47]
[1771114141477,16.75455176,87.904,87.807,34.12]
[1771114141775,16.75455176,87.904,87.809,45.47]
[1771114142576,16.75455176,87.904,87.811,45.47]
[1771114143280,16.75455176,87.904,87.836,10.2519]
[1771114143776,16.75255978,87.902,87.836,10.2519]
[1771114145880,16.7126294,87.9,87.836,10.2519]
[1771114146580,16.7126294,87.9,87.845,10.2509]
[1771114149176,16.7126294,87.9,87.835,10.252]
[1771114150881,16.65491577,87.895,87.843,10.251]
[1771114151677,16.65491577,87.895,87.833,164.5723]
[1771114153371,16.65491577,87.895,87.833,10.2523]
[1771114153577,16.65491577,87.895,87.841,10.2513]
[1771114156977,16.65491577,87.895,87.849,10.2504]
[1771114157578,16.65491577,87.895,87.835,154.42]
[1771114157975,16.65491577,87.895,87.848,10.2505]
[1771114160884,16.65491577,87.895,87.856,10.2496]
[1771114161386,16.65491577,87.895,87.847,10.2506]
[1771114161778,16.65491577,87.895,87.832,154.24]
[1771114162381,16.65491577,87.895,87.846,10.2508]
[1771114164878,16.27778415,87.89,87.836,10.2519]
[1771114165888,10.2458,87.889,87.836,10.2519]
[1771114166086,26.51916082,87.889,87.836,10.2519]
[1771114166288,16.27336082,87.888,87.836,10.2519]
[1771114167081,26.51938441,87.887,87.836,10.2519]
[1771114168489,16.32428744,87.881,87.832,154.24]
[1771114168887,16.32431143,87.895,87.832,154.24]
[1771114169088,16.32431143,87.895,87.817,34.12]
[1771114169287,16.32431143,87.895,87.819,11.35]
[1771114169490,16.32431143,87.928,87.82,34.12]
[1771114170086,16.32431143,87.928,87.833,34.12]
[1771114170290,16.32431143,87.928,87.838,11.35]
[1771114170691,16.32431143,87.928,87.88,2.4154393]
[1771114170888,10.2425,87.918,87.88,2.4154393]
[1771114173689,16.32431143,87.928,87.88,2.4154393]
[1771114180786,16.32431143,87.928,87.875,10.2474]
[1771114180994,16.32431143,87.928,87.88,2.4154393]
[1771114184797,16.17324059,87.916,87.85,2.4154393]
[1771114185003,16.17324059,87.909,87.86,2.4154393]
[1771114185201,16.17324059,87.909,87.87,2.4154393]
[1771114188701,10.2436,87.908,87.87,2.4154393]
[1771114189102,16.25601264,87.907,87.87,2.4154393]
[1771114193502,16.24436343,87.905,87.87,2.4154393]
[1771114194701,10.2441,87.904,87.87,2.4154393]
[1771114194901,16.24321685,87.903,87.87,2.4154393]
[1771114195398,26.48601685,87.915,87.87,2.4154393]
[1771114195601,26.48601685,87.915,87.88,2.4154393]
[1771114196307,16.23206387,87.914,87.88,2.4154393]
[1771114198405,16.23205178,87.91,87.87,2.4154393]
[1771114201906,16.23205178,87.91,87.863,10.2487]
[1771114202808,16.23205178,87.91,87.87,2.4154393]
[1771114203202,16.23205178,87.91,87.88,2.4154393]
[1771114203703,16.23205178,87.91,87.871,10.2478]
[1771114204413,16.22213149,87.922,87.89,2.4154393]
[1771114205204,16.22214965,87.934,87.9,2.4154393]
[1771114205610,16.22214965,87.934,87.91,2.4154393]
[1771114205806,16.34507362,87.953,87.92,2.4154393]
[1771114206610,16.345088,87.97,87.93,2.4154393]
[1771114206811,16.345088,87.97,87.92,2.4154393]
[1771114207412,16.345088,87.958,87.91,2.4154393]
[1771114208212,16.10643683,87.949,87.895,10.245]
[1771114208411,16.10643683,87.949,87.89,2.4154393]
[1771114208914,16.10643683,87.949,87.891,10.2455]
[1771114209316,16.10643683,87.949,87.92,2.41469789]
[1771114209617,16.10646084,87.973,87.93,2.41469789]
[1771114210211,16.10646084,87.973,87.92,2.41469789]
[1771114211217,16.10646084,87.973,87.93,2.41469789]
[1771114216122,16.10646084,87.973,87.94,2.41469789]
[1771114217123,16.10646084,87.973,87.95,2.41469789]
[1771114217332,197.34,88.002,87.93,2.41469789]
[1771114217333,16.25481528,87.984,87.93,2.41469789]
[1771114218830,16.26648617,87.978,87.93,2.41469789]
[1771114219522,16.26648617,87.974,87.92,2.41469789]
[1771114220934,16.16988818,87.969,87.92,2.41469789]
[1771114221734,16.16988818,87.969,87.905,10.2439]
[1771114221935,16.16988818,87.969,87.91,2.41469789]
[1771114222133,16.16988818,87.969,87.92,2.41469789]
[1771114222330,16.16988818,87.969,87.91,2.41469789]
[1771114222832,16.17160215,87.958,87.91,2.41469789]
[1771114223029,16.17160215,87.958,87.905,10.2439]
[1771114223928,16.17160215,87.958,87.91,2.41469789]
[1771114224529,16.17160215,87.958,87.911,10.2432]
[1771114227833,16.17631844,87.972,87.94,2.41469789]
[1771114229230,16.17631844,87.972,87.93,2.41469789]
[1771114232029,16.17631844,87.972,87.94,2.41469789]
[1771114232828,148.95,88.012,87.94,2.41469789]
[1771114232829,16.14444556,87.985,87.94,2.41469789]
[1771114233036,16.14444556,87.985,87.95,2.41469789]
[1771114236238,16.14444556,87.985,87.942,10.2395]
[1771114236438,16.14444556,87.985,87.94,2.41469789]
[1771114242143,16.14444556,87.985,87.94,12.65449789]
[1771114242341,16.14444556,87.985,87.95,2.41469789]
[1771114244042,34.15,88.035,87.914,120.82]
[1771114244043,10.2316,88.012,87.96,2.41469789]
[1771114244242,2.41469789,88.02,87.96,2.41469789]
[1771114245850,2.41469789,88.03,87.97,2.41469789]
[1771114246044,8.68519362,88.029,87.97,2.41469789]
[1771114246641,8.68521647,88.009,87.95,2.41469789]
[1771114247450,8.68521647,88.009,87.951,1.10294301]
[1771114247650,8.68521647,88.006,87.96,2.41469789]
[1771114248453,8.68521647,88.006,87.962,10.2372]
[1771114254750,8.68521647,88.006,87.97,2.41469789]
[1771114257047,9.02943501,88.017,87.971,0.52402885]
[1771114257253,9.02943501,88.017,87.98,2.41469789]
[1771114257653,9.04382628,88.029,87.99,2.41469789]
[1771114258759,9.04404118,88.026,87.97,2.41469789]
[1771114259457,9.04404118,88.026,87.969,0.51518233]
[1771114259657,9.04404118,88.026,87.97,2.41469789]
[1771114259854,9.03457477,88.022,87.972,10.236]
[1771114260560,2.41469789,88.03,87.96,2.41469789]
[1771114260561,9.03457477,88.018,87.96,2.41469789]
[1771114260862,9.03478221,88.009,87.95,2.41469789]
[1771114261064,9.03478221,87.997,87.944,10.2393]
[1771114261358,9.03478221,87.997,87.93,2.41469789]
[1771114261568,10.2355,87.978,87.928,0.55358113]
[1771114261862,9.05168619,87.977,87.92,2.41469789]
[1771114262655,9.05168619,87.977,87.93,2.41469789]
[1771114262861,9.05168619,87.977,87.94,2.41469789]
[1771114263452,9.05189342,87.975,87.93,2.41469789]
[1771114263862,9.05189342,87.975,87.92,2.41469789]
[1771114264660,9.10879969,87.972,87.92,2.41469789]
[1771114266857,9.0809746,87.969,87.92,2.41469789]
[1771114268468,9.03066495,87.982,87.94,2.41469789]
[1771114269068,9.03085118,87.98,87.932,0.62801403]
[1771114269458,9.03085118,87.98,87.93,2.41469789]
[1771114270067,9.0776168,87.977,87.93,2.41469789]
[1771114270856,9.0776168,87.977,87.93,2.41303078]
[1771114271862,8.97611134,87.975,87.93,2.41303078]
[1771114273669,10.236,87.974,87.93,2.41303078]
[1771114273861,8.97653602,87.973,87.92,2.41303078]
[1771114274468,8.97653602,87.971,87.92,2.41303078]
[1771114275070,8.97668274,87.969,87.906,0.8074878]
[1771114275263,90.68,88.006,87.906,0.8074878]
[1771114275264,8.97668274,87.959,87.906,0.8074878]
[1771114275962,8.97668274,87.959,87.91,2.41303078]
[1771114276363,8.95649474,87.957,87.91,2.41303078]
[1771114280567,8.95649474,87.957,87.911,1.13136363]
[1771114281975,8.95649474,87.957,87.92,2.41303078]
[1771114283175,8.95649474,87.957,87.911,1.13136363]
[1771114286882,8.88982683,87.954,87.911,1.13136363]
[1771114289586,8.88982683,87.949,87.91,2.41303078]
[1771114290081,8.88982683,87.947,87.886,1.36476138]
[1771114290279,8.88982683,87.947,87.89,2.41303078]
[1771114291580,8.88982683,87.934,87.89,2.41303078]
[1771114293078,8.88982683,87.929,87.88,2.41303078]
[1771114293776,8.88982683,87.927,87.87,2.41303078]
[1771114294585,8.88982683,87.909,87.85,2.41303078]
[1771114295493,8.88982683,87.903,87.85,2.41303078]
[1771114295787,8.88982683,87.903,87.851,1.58455939]
[1771114296188,8.88982683,87.897,87.851,1.58455939]
[1771114296586,2.41303078,87.92,87.84,2.41303078]
[1771114296587,8.88982683,87.887,87.84,2.41303078]
[1771114296983,8.88982683,87.887,87.823,1.59113928]
[1771114298191,8.88982683,87.863,87.823,1.59113928]
[1771114299085,8.88982683,87.863,87.83,2.41303078]
[1771114299887,8.88982683,87.863,87.805,4.17133906]
[1771114300083,8.88982683,87.863,87.82,2.41303078]
[1771114300286,8.88982683,87.863,87.81,2.41303078]
[1771114300687,8.88982683,87.863,87.82,2.41303078]
[1771114301393,8.88982683,87.863,87.81,2.41303078]
[1771114301787,9.36216616,87.859,87.81,2.41303078]
[1771114302086,9.36216616,87.859,87.82,2.41303078]
[1771114302695,9.36216616,87.857,87.82,2.41303078]
[1771114302887,9.36216616,87.857,87.81,2.41303078]
[1771114303083,9.36216616,87.857,87.8,2.41303078]
[1771114303490,9.14524262,87.845,87.8,2.41303078]
[1771114303689,9.14524262,87.839,87.78,2.41303078]
[1771114304590,9.14524262,87.818,87.77,2.41303078]
[1771114305396,9.14524262,87.818,87.77,6.56285475]
[1771114305599,9.14524262,87.818,87.77,2.41303078]
[1771114306091,9.14524262,87.815,87.77,2.41303078]
[1771114306491,9.14524262,87.815,87.78,2.41303078]
[1771114306696,9.14524262,87.83,87.79,2.41303078]
[1771114307291,9.14524262,87.848,87.81,2.41303078]
[1771114307688,9.14524262,87.848,87.82,2.41303078]
[1771114308090,9.14524262,87.879,87.82,2.41303078]
[1771114308289,9.14524262,87.879,87.83,2.41303078]
[1771114308798,9.14524262,87.867,87.83,2.41303078]
[1771114309296,9.14524262,87.865,87.82,2.41303078]
[1771114310493,9.14524262,87.865,87.83,2.41303078]
[1771114310700,10.2469,87.88,87.84,2.41303078]
[1771114311094,9.14524262,87.877,87.83,2.41303078]
[1771114312492,9.14524262,87.877,87.84,2.41303078]
[1771114312896,10.2462,87.886,87.85,2.41303078]
[1771114313099,9.14524262,87.885,87.84,2.41303078]
[1771114317896,19.39164262,87.884,87.84,2.41303078]
[1771114318098,9.14524262,87.883,87.831,3.98726823]
[1771114318496,9.14524262,87.883,87.84,2.41303078]
[1771114320202,9.14524262,87.9,87.851,5.00267758]
[1771114320901,9.14524262,87.9,87.86,2.41303078]
[1771114321105,9.14524262,87.919,87.87,2.41303078]
[1771114321298,9.14524262,87.919,87.88,2.41303078]
[1771114321499,9.14524262,87.919,87.86,2.41303078]
[1771114321898,9.14524262,87.897,87.85,2.41303078]
[1771114322201,9.14524262,87.897,87.86,2.41303078]
[1771114324006,9.14524262,87.897,87.87,2.41303078]
[1771114324201,9.14524262,87.917,87.87,2.41303078]
[1771114324407,9.14524262,87.906,87.87,2.41303078]
[1771114324612,9.14524262,87.906,87.85,2.41303078]
[1771114325498,9.14524262,87.895,87.85,2.41303078]
[1771114325804,9.14524262,87.895,87.84,2.41303078]
[1771114327206,9.14524262,87.894,87.85,2.41303078]
[1771114327399,9.14524262,87.894,87.84,2.41303078]
[1771114327606,9.14524262,87.883,87.83,2.41303078]
[1771114328810,9.14524262,87.88,87.83,2.41303078]
[1771114331011,9.14524262,87.88,87.84,2.41790989]
[1771114332708,9.14524262,87.88,87.837,10.2518]
[1771114334205,10.2476,87.874,87.818,10.254]
[1771114334404,9.25253389,87.873,87.818,10.254]
[1771114335710,10.2481,87.869,87.818,10.254]
[1771114335911,9.25253389,87.868,87.818,10.254]
[1771114336812,9.25253389,87.868,87.82,2.41790989]
[1771114337611,9.25253389,87.868,87.81,2.41790989]
[1771114337807,9.25253389,87.868,87.801,5.10980115]
[1771114337808,9.25253389,87.859,87.801,5.10980115]
[1771114338704,9.25253389,87.849,87.801,5.10980115]
[1771114339107,9.25253389,87.849,87.81,2.41790989]
[1771114339809,9.25253389,87.849,87.811,15.4262495]
[1771114340013,10.2494,87.859,87.82,2.41790989]
[1771114341109,10.2494,87.859,87.813,10.2546]
[1771114343116,2.41790989,87.87,87.812,5.1714495]
[1771114343117,9.25253389,87.855,87.812,5.1714495]
[1771114347420,9.25253389,87.855,87.812,15.4261495]
[1771114348220,9.25253389,87.855,87.816,5.08824267]
[1771114352627,9.25253389,87.855,87.818,10.254]
[1771114353023,9.25253389,87.855,87.82,2.41790989]
[1771114353723,9.25253389,87.855,87.774,45.52]
[1771114353724,9.25253389,87.855,87.81,2.41790989]
[1771114353928,9.25253389,87.855,87.807,10.2553]
[1771114355126,9.25253389,87.855,87.81,2.41790989]
[1771114355522,9.25253389,87.855,87.812,10.2548]
[1771114355724,9.25253389,87.855,87.812,15.19282126]
[1771114360030,9.25253389,87.855,87.81,2.41790989]
[1771114360730,8.83069684,87.854,87.81,2.41790989]
[1771114360921,8.83069684,87.854,87.802,10.2558]
[1771114361127,8.83069684,87.854,87.803,4.98604392]
[1771114362026,8.83069684,87.843,87.793,4.99469961]
[1771114362525,10.2513,87.842,87.794,10.2568]
[1771114362729,8.83069684,87.841,87.794,10.2568]
[1771114362933,8.83069684,87.841,87.8,2.41790989]
[1771114363530,8.83069684,87.841,87.79,2.41790989]
[1771114363735,9.53231733,87.839,87.78,7.39809432]
[1771114364323,9.53231733,87.832,87.781,15.2350048]
[1771114364622,2.41790989,87.84,87.8,2.41790989]
[1771114364623,9.53231733,87.84,87.8,2.41790989]
[1771114368926,9.53231733,87.84,87.791,4.9753575]
[1771114369129,9.53231733,87.84,87.8,2.41790989]
[1771114369736,9.53231733,87.837,87.79,2.41790989]
[1771114371636,9.53231733,87.833,87.79,2.41790989]
[1771114372233,9.53231733,87.833,87.78,7.42886555]
[1771114372731,9.53231733,87.829,87.767,5.009732]
[1771114372938,9.53231733,87.829,87.771,5.009732]
[1771114373138,9.53231733,87.829,87.78,2.41790989]
[1771114373837,9.53231733,87.826,87.78,2.41790989]
[1771114375332,9.53231733,87.826,87.79,2.41790989]
[1771114375542,9.53231733,87.836,87.791,5.03211951]
[1771114377940,9.53231733,87.832,87.791,5.03211951]
[1771114380939,9.53231733,87.832,87.793,5.10830504]
[1771114381241,9.53231733,87.843,87.793,5.10830504]
[1771114381842,9.53231733,87.841,87.793,5.10830504]
[1771114382742,2.41790989,87.85,87.793,5.10830504]
[1771114382743,9.53231733,87.838,87.793,5.10830504]
[1771114384638,9.53231733,87.833,87.781,5.10853688]
[1771114385342,9.53231733,87.829,87.77,2.41790989]
[1771114385534,9.53231733,87.829,87.768,5.10848836]
[1771114385739,9.53231733,87.829,87.771,5.19686263]
[1771114386745,9.53231733,87.826,87.771,5.19686263]
[1771114389041,9.53231733,87.809,87.759,5.20523883]
[1771114389249,9.53231733,87.809,87.75,7.62314872]
[1771114389548,9.53231733,87.809,87.751,5.20523883]
[1771114390846,2.41790989,87.81,87.751,5.20523883]
[1771114390847,9.53231733,87.805,87.751,5.20523883]
[1771114392048,9.53231733,87.805,87.753,5.20776284]
[1771114392650,9.53231733,87.805,87.76,2.41790989]
[1771114392850,9.53231733,87.805,87.76,2.42234808]
[1771114393452,9.53231733,87.805,87.762,15.46895035]
[1771114393851,9.53231733,87.805,87.77,2.42234808]
[1771114394452,9.53231733,87.805,87.762,15.46895035]
[1771114399253,8.68372195,87.779,87.728,28.33861404]
[1771114399454,8.68372195,87.779,87.721,5.06337414]
[1771114399657,8.68372195,87.779,87.73,2.42234808]
[1771114399856,8.68372195,87.779,87.731,5.09966054]
[1771114400358,10.52741694,87.838,87.704,1.98292293]
[1771114400359,2.42234808,87.81,87.751,5.09966054]
[1771114400559,8.68372195,87.809,87.751,5.09966054]
[1771114401849,8.68372195,87.804,87.751,5.09966054]
[1771114402657,8.68372195,87.804,87.751,15.36146054]
[1771114403359,8.68372195,87.804,87.752,4.86481443]
[1771114405857,8.68372195,87.804,87.754,4.82356972]
[1771114407162,8.68372195,87.804,87.761,4.82264787]
[1771114407661,8.68372195,87.804,87.77,2.42234808]
[1771114411663,8.68372195,87.804,87.78,2.42234808]
[1771114411961,2.42234808,87.85,87.791,9.29094842]
[1771114412862,10.2506,87.848,87.791,19.54814842]
[1771114413861,8.68372195,87.847,87.794,9.29094842]
[1771114414260,8.68372195,87.847,87.757,34.15]
[1771114414261,8.68372195,87.847,87.801,9.29094842]
[1771114416761,8.68372195,87.847,87.802,19.54684842]
[1771114418470,8.68372195,87.847,87.803,9.29094842]
[1771114420366,8.68372195,87.847,87.756,90.74]
[1771114420367,8.68372195,87.847,87.791,8.77341736]
[1771114421860,8.68372195,87.847,87.796,19.02991736]
[1771114422972,2.42234808,87.85,87.796,19.02991736]
[1771114422973,9.47348701,87.845,87.797,9.42119813]
[1771114424463,10.2516,87.839,87.797,9.813e-05]
[1771114424669,9.47348701,87.838,87.782,10.2582]
[1771114426168,9.47348701,87.838,87.79,2.42234808]
[1771114426975,9.47348701,87.838,87.794,4.19452592]
[1771114427675,9.47348701,87.838,87.79,2.42234808]
[1771114427676,9.47348701,87.838,87.796,4.19452592]
[1771114427878,9.47348701,87.846,87.8,2.42234808]
[1771114428064,9.47348701,87.846,87.801,4.33183469]
[1771114429277,9.47348701,87.858,87.811,4.34406097]
[1771114430577,9.47348701,87.87,87.821,4.20146622]
[1771114430772,9.47348701,87.87,87.83,2.42234808]
[1771114430979,171.1797925,87.903,87.793,10.2569]
[1771114430980,9.47348701,87.859,87.793,10.2569]
[1771114431171,9.47348701,87.853,87.801,4.20182185]
[1771114431776,187.08,87.885,87.742,35.30650565]
[1771114431777,10.2488,87.863,87.811,4.22900105]
[1771114431976,9.47348701,87.868,87.82,6.65134913]
[1771114433186,9.47348701,87.868,87.821,4.24033509]
[1771114433375,9.47348701,87.866,87.81,2.42234808]
[1771114434585,9.47348701,87.866,87.82,2.42234808]